bitfinex/quotes_SOLUSD_20220103
["timestamp","ask_amount","ask_price","bid_price","bid_amount"]
[1641244074664,18.46167452,168.56,168.47,25.9439079]
[1641244074869,2.43977452,168.56,168.47,25.9439079]
[1641244075069,22.5459,168.6,168.47,35.1064079]
[1641244075266,76.2019,168.61,168.48,24.3937]
[1641244075467,1.67322481,168.62,168.48,31.7737]
[1641244075667,1.67322481,168.62,168.48,33.20039368]
[1641244075865,1.67322481,168.62,168.5,29.6618]
[1641244076066,10.2482,168.63,168.52,26.86895145]
[1641244076268,2.54417671,168.62,168.52,26.86895145]
[1641244076567,2.54417671,168.62,168.52,27.12895145]
[1641244076771,3.04417671,168.62,168.52,27.12895145]
[1641244077272,11.94297671,168.62,168.54,8.8986]
[1641244077472,12.20297671,168.62,168.54,8.8986]
[1641244077668,11.70297671,168.62,168.54,8.8986]
[1641244077871,12.20297671,168.62,168.54,8.8986]
[1641244078068,12.20297671,168.62,168.52,26.86895145]
[1641244078569,11.70297671,168.62,168.52,27.12895145]
[1641244078769,12.20297671,168.62,168.52,27.12895145]
[1641244078970,12.20297671,168.62,168.47,29.6659]
[1641244079170,22.7057,168.61,168.48,24.7631]
[1641244079372,24.5021,168.61,168.48,24.7631]
[1641244079573,24.7621,168.61,168.48,24.7631]
[1641244079973,24.7621,168.61,168.49,26.49885181]
[1641244080572,8.9019,168.56,168.49,26.75885181]
[1641244080771,2.37027193,168.55,168.49,26.75885181]
[1641244081874,11.27257193,168.55,168.49,26.75885181]
[1641244082370,11.27257193,168.55,168.48,8.9019]
[1641244082575,11.53257193,168.55,168.48,0.26]
[1641244082973,12.03257193,168.55,168.46,9.1625]
[1641244083373,12.03257193,168.55,168.46,32.66420961]
[1641244083573,12.03257193,168.55,168.46,32.40420961]
[1641244084174,12.03257193,168.55,168.46,8.9025]
[1641244084374,12.03257193,168.55,168.45,33.4112]
[1641244084574,12.03257193,168.55,168.45,8.9035]
[1641244084777,12.03257193,168.55,168.43,1.3456]
[1641244085179,12.03257193,168.55,168.44,24.97750762]
[1641244086079,19.15257193,168.55,168.44,24.97750762]
[1641244086278,19.15257193,168.55,168.42,46.6796]
[1641244086279,19.15257193,168.55,168.4,1.3582]
[1641244086483,8.9063,168.48,168.4,1.3582]
[1641244086680,3.00162617,168.47,168.4,1.3582]
[1641244087081,3.26162617,168.47,168.4,1.3582]
[1641244087280,3.26162617,168.47,168.4,24.66092935]
[1641244087879,3.26162617,168.47,168.4,23.30272935]
[1641244088081,12.16822617,168.47,168.39,24.7994]
[1641244088282,12.66822617,168.47,168.39,24.7994]
[1641244088481,12.66822617,168.47,168.33,31.5667]
[1641244089082,12.66822617,168.47,168.36,8.908]
[1641244089282,12.66822617,168.47,168.34,24.27564539]
[1641244089483,12.16822617,168.47,168.35,22.6212]
[1641244089806,11.90822617,168.47,168.35,22.6212]
[1641244089983,8.9066,168.47,168.35,24.04789368]
[1641244090186,34.0512,168.49,168.35,31.16789368]
[1641244090384,25.1452,168.49,168.36,1.2955]
[1641244090585,25.1452,168.49,168.36,1.5555]
[1641244090784,25.1452,168.49,168.38,22.50061091]
[1641244090987,2.31727571,168.48,168.38,22.76061091]
[1641244091584,2.31727571,168.48,168.38,46.90711091]
[1641244092287,2.31727571,168.48,168.41,8.9056]
[1641244092488,2.57727571,168.48,168.42,23.72411167]
[1641244092888,2.57727571,168.48,168.42,23.98411167]
[1641244095390,2.57727571,168.48,168.42,23.72411167]
[1641244095590,11.48337571,168.48,168.42,23.72411167]
[1641244096191,2.57727571,168.48,168.42,23.72411167]
[1641244096791,2.57727571,168.48,168.42,23.98411167]
[1641244097392,0.26,168.48,168.42,23.72411167]
[1641244097594,10.4356,168.49,168.42,23.72411167]
[1641244097796,78.6953,168.5,168.42,23.72411167]
[1641244098004,78.9553,168.5,168.42,23.72411167]
[1641244098194,79.4553,168.5,168.42,23.72411167]
[1641244098593,81.76312088,168.5,168.42,23.72411167]
[1641244098796,81.76312088,168.5,168.42,23.98411167]
[1641244098995,81.50312088,168.5,168.42,23.98411167]
[1641244099595,90.40822088,168.5,168.42,32.88921167]
[1641244100596,90.66822088,168.5,168.42,32.88921167]
[1641244102900,90.40822088,168.5,168.42,32.88921167]
[1641244103901,90.40822088,168.5,168.42,23.98411167]
[1641244104200,90.66822088,168.5,168.39,1.3272]
[1641244104401,90.66822088,168.5,168.41,0.26]
[1641244104923,90.66822088,168.5,168.41,9.1655]
[1641244105121,90.66822088,168.5,168.41,8.9055]
[1641244105321,90.66822088,168.5,168.41,9.1655]
[1641244105721,90.66822088,168.5,168.41,31.6955]
[1641244106621,88.3604,168.5,168.41,31.6955]
[1641244107022,79.4553,168.5,168.41,31.6955]
[1641244107624,79.1953,168.5,168.41,31.6955]
[1641244107822,26.4694533,168.54,168.41,31.6955]
[1641244108026,26.4694533,168.54,168.41,40.24219368]
[1641244108623,26.4694533,168.54,168.42,1.2756]
[1641244108823,35.3725533,168.54,168.47,28.17224848]
[1641244109022,11.7790533,168.54,168.47,28.43224848]
[1641244109222,2.8759533,168.54,168.47,28.17224848]
[1641244109622,2.8759533,168.54,168.47,28.43224848]
[1641244109822,2.8759533,168.54,168.47,37.33474848]
[1641244110022,0.26,168.54,168.47,37.33474848]
[1641244110424,113.8799,168.55,168.47,37.33474848]
[1641244111023,113.6199,168.55,168.47,37.33474848]
[1641244111723,104.717,168.55,168.47,37.33474848]
[1641244112927,104.977,168.55,168.47,37.33474848]
[1641244113528,104.717,168.55,168.47,37.33474848]
[1641244113930,2.2913239,168.54,168.47,37.33474848]
[1641244114730,2.2913239,168.54,168.47,8.9025]
[1641244115030,2.5513239,168.54,168.46,8.903]
[1641244115432,3.0513239,168.54,168.46,8.903]
[1641244115635,3.0513239,168.54,168.46,37.11434561]
[1641244116033,3.0513239,168.54,168.46,37.37434561]
[1641244116231,2.2913239,168.54,168.46,37.37434561]
[1641244116733,11.1945239,168.54,168.46,37.37434561]
[1641244117136,2.2913239,168.54,168.46,37.37434561]
[1641244118241,80.8013,168.55,168.46,37.37434561]
[1641244120439,80.8013,168.55,168.46,38.80103929]
[1641244120638,79.4624,168.55,168.46,38.80103929]
[1641244120842,1.3145,168.6,168.46,38.80103929]
[1641244120843,77.3221,168.6,168.46,38.80103929]
[1641244121039,1.67322481,168.62,168.47,31.7212]
[1641244121241,1.67322481,168.62,168.54,8.898]
[1641244121440,1.67322481,168.62,168.55,31.59876261]
[1641244121642,2.57974373,168.61,168.55,31.59876261]
[1641244121842,2.57974373,168.61,168.55,31.85876261]
[1641244122442,1.67322481,168.66,168.55,31.85876261]
[1641244122640,1.67322481,168.66,168.55,38.97876261]
[1641244123242,153.33942481,168.7,168.55,38.97876261]
[1641244123445,11.32752207,168.69,168.6,8.8956]
[1641244123842,11.82752207,168.69,168.6,9.1556]
[1641244124042,11.82752207,168.69,168.6,0.26]
[1641244124446,12.08752207,168.69,168.6,0.26]
[1641244124643,12.08752207,168.69,168.58,8.8966]
[1641244125048,12.08752207,168.69,168.58,9.1566]
[1641244126247,11.32752207,168.69,168.58,9.1566]
[1641244126448,2.43162207,168.69,168.58,9.1566]
[1641244127649,2.69162207,168.69,168.58,9.1566]
[1641244128948,2.69162207,168.69,168.58,8.8966]
[1641244129547,3.19162207,168.69,168.58,8.8966]
[1641244129751,12.08712207,168.69,168.56,35.8439]
[1641244130551,13.76034688,168.69,168.56,36.1039]
[1641244130849,13.76034688,168.69,168.56,35.8439]
[1641244131078,13.76034688,168.69,168.56,24.3529]
[1641244131251,1.67322481,168.68,168.55,8.8981]
[1641244131449,8.8989,168.63,168.52,1.3235]
[1641244131649,2.71226323,168.66,168.52,1.3235]
[1641244131852,3.02173712,168.62,168.51,1.2965]
[1641244132049,3.28173712,168.62,168.5,8.9003]
[1641244132251,3.78173712,168.62,168.5,8.9003]
[1641244132450,8.9002,168.61,168.51,23.27401536]
[1641244132851,9.1602,168.61,168.51,23.53401536]
[1641244133752,9.1602,168.61,168.52,8.8998]
[1641244133951,9.1602,168.61,168.52,9.1598]
[1641244135553,9.1602,168.61,168.51,8.9002]
[1641244135754,9.6602,168.61,168.51,0.26]
[1641244135954,9.6602,168.61,168.49,1.2467]
[1641244136159,9.6602,168.61,168.48,49.0601]
[1641244137557,9.6602,168.61,168.48,49.3201]
[1641244137756,9.6602,168.61,168.49,8.9008]
[1641244137958,9.6602,168.61,168.49,9.1608]
[1641244138956,9.1602,168.61,168.49,9.1608]
[1641244139159,0.26,168.61,168.49,9.1608]
[1641244139558,3.28173712,168.62,168.49,10.58749368]
[1641244139757,3.02173712,168.62,168.49,10.58749368]
[1641244139959,3.02173712,168.62,168.55,8.8977]
[1641244140158,3.02173712,168.62,168.54,31.39417231]
[1641244140558,3.02173712,168.62,168.54,31.65417231]
[1641244141058,3.02173712,168.62,168.57,8.8972]
[1641244141260,3.02173712,168.62,168.54,31.65417231]
[1641244141958,3.28173712,168.62,168.54,31.65417231]
[1641244142157,3.28173712,168.62,168.53,24.6642]
[1641244142362,12.18093712,168.62,168.48,31.256]
[1641244142557,12.18093712,168.62,168.52,0.26]
[1641244142958,12.18093712,168.62,168.48,31.516]
[1641244143159,12.68093712,168.62,168.49,54.08584988]
[1641244143357,12.18093712,168.62,168.5,8.9004]
[1641244143559,12.18093712,168.62,168.5,0.26]
[1641244144159,12.18093712,168.62,168.49,55.62314988]
[1641244144961,12.68093712,168.62,168.49,55.62314988]
[1641244145462,12.18093712,168.62,168.49,55.62314988]
[1641244145664,12.18093712,168.62,168.52,8.8993]
[1641244146098,12.18093712,168.62,168.52,9.1593]
[1641244147866,12.68093712,168.62,168.52,9.1593]
[1641244148071,3.02173712,168.62,168.52,9.1593]
[1641244148567,76.7919,168.64,168.53,7.12]
[1641244148770,1.67322481,168.67,168.53,7.12]
[1641244148968,1.67322481,168.67,168.54,24.68709368]
[1641244149171,177.27682481,168.7,168.54,24.68709368]
[1641244149371,186.17192481,168.7,168.57,31.12711054]
[1641244149572,2.63312329,168.69,168.57,46.12711054]
[1641244149969,2.89312329,168.69,168.57,46.12711054]
[1641244150171,2.89312329,168.69,168.57,70.08641054]
[1641244150572,2.89312329,168.69,168.61,8.8951]
[1641244150774,2.63312329,168.69,168.61,8.8951]
[1641244150970,2.63312329,168.69,168.61,9.1551]
[1641244152072,2.89312329,168.69,168.61,9.1551]
[1641244157101,2.63312329,168.69,168.61,9.1551]
[1641244168813,77.4586,168.73,168.61,9.1551]
[1641244169011,77.4586,168.73,168.62,24.1932]
[1641244169211,77.4586,168.73,168.66,8.8925]
[1641244169417,77.4586,168.73,168.67,30.83723725]
[1641244169812,77.4586,168.73,168.67,31.09723725]
[1641244170012,2.32895972,168.72,168.67,31.09723725]
[1641244171013,2.32895972,168.72,168.66,8.8925]
[1641244171213,2.32895972,168.72,168.66,0.26]
[1641244171815,2.32895972,168.72,168.62,24.1932]
[1641244172117,2.58895972,168.72,168.59,30.19663654]
[1641244172315,11.98295972,168.72,168.61,8.8947]
[1641244172615,11.48295972,168.72,168.61,8.8947]
[1641244173215,11.48295972,168.72,168.61,9.1547]
[1641244176221,11.48295972,168.72,168.61,10.3997]
[1641244177124,11.48295972,168.72,168.61,8.8947]
[1641244177323,11.98295972,168.72,168.6,8.8956]
[1641244177621,8.8959,168.69,168.6,8.8956]
[1641244177821,8.8959,168.69,168.57,25.4929]
[1641244178023,9.6559,168.69,168.57,25.4929]
[1641244178322,9.6559,168.69,168.57,34.3897]
[1641244178522,9.6559,168.69,168.57,24.2629]
[1641244179121,10.969,168.69,168.55,2.6978]
[1641244179726,10.969,168.69,168.57,8.8971]
[1641244180322,12.64222481,168.69,168.57,8.8971]
[1641244180523,12.64222481,168.69,168.57,9.1571]
[1641244182025,12.64222481,168.69,168.57,0.26]
[1641244182228,12.64222481,168.69,168.56,34.108]
[1641244184634,12.64222481,168.69,168.56,33.848]
[1641244184832,12.64222481,168.69,168.55,38.30098976]
[1641244185630,12.38222481,168.69,168.55,38.30098976]
[1641244185832,11.88222481,168.69,168.6,8.8956]
[1641244186035,11.88222481,168.69,168.6,9.1556]
[1641244186232,2.98632481,168.69,168.6,9.1556]
[1641244186431,1.67322481,168.69,168.6,9.1556]
[1641244186833,1.67322481,168.71,168.6,9.1556]
[1641244187233,1.67322481,168.71,168.62,27.23341449]
[1641244187459,1.67322481,168.71,168.66,8.8923]
[1641244187856,1.67322481,168.71,168.66,9.1523]
[1641244188058,2.32895972,168.72,168.66,9.1523]
[1641244189560,70.79775972,168.74,168.66,9.1523]
[1641244189760,2.21807647,168.73,168.66,9.1523]
[1641244192165,2.47807647,168.73,168.65,8.893]
[1641244192364,2.97807647,168.73,168.63,0.26]
[1641244192765,11.87157647,168.73,168.63,0.26]
[1641244192966,11.87157647,168.73,168.57,24.7381]
[1641244193567,25.66212481,168.72,168.57,24.7381]
[1641244193770,25.66212481,168.72,168.61,8.895]
[1641244193966,2.17761424,168.7,168.61,9.155]
[1641244194369,2.43761424,168.7,168.61,8.895]
[1641244194770,2.93761424,168.7,168.61,8.895]
[1641244195575,11.83271424,168.7,168.61,8.895]
[1641244195776,11.33271424,168.7,168.61,8.895]
[1641244195978,11.33271424,168.7,168.61,9.155]
[1641244196186,2.43761424,168.7,168.61,9.155]
[1641244196380,2.43761424,168.7,168.62,32.05362674]
[1641244196580,2.43761424,168.7,168.62,32.31362674]
[1641244197188,2.17761424,168.7,168.62,32.31362674]
[1641244198083,3.00132481,168.73,168.62,32.31362674]
[1641244198383,2.17322481,168.73,168.62,33.74032042]
[1641244198617,1.67322481,168.73,168.62,33.74032042]
[1641244198816,1.67322481,168.73,168.62,57.40552042]
[1641244199315,4.55768613,168.73,168.62,57.40552042]
[1641244199917,2.88446132,168.73,168.62,56.89858042]
[1641244200824,2.88446132,168.73,168.62,55.47188674]
[1641244201822,2.88446132,168.73,168.62,55.21188674]
[1641244202023,2.88446132,168.73,168.62,56.63858042]
[1641244203024,2.88446132,168.73,168.62,56.89858042]
[1641244210733,2.88446132,168.73,168.62,58.14138042]
[1641244211635,2.88446132,168.73,168.62,57.88138042]
[1641244211832,2.88446132,168.73,168.62,8.8945]
[1641244212033,3.64446132,168.73,168.62,8.8945]
[1641244212233,5.31768613,168.73,168.62,8.8945]
[1641244212836,4.81768613,168.73,168.62,35.87794843]
[1641244213040,4.81768613,168.73,168.62,8.8945]
[1641244213236,4.55768613,168.73,168.62,8.8945]
[1641244213437,4.55768613,168.73,168.62,10.32119368]
[1641244213634,1.67322481,168.71,168.62,10.32119368]
[1641244213839,2.83828183,168.7,168.62,8.8945]
[1641244214036,2.83828183,168.7,168.62,9.1545]
[1641244215437,2.83828183,168.7,168.61,8.895]
[1641244215642,3.09828183,168.7,168.57,30.11135783]
[1641244215837,3.59828183,168.7,168.57,23.9253]
[1641244216437,105.59448183,168.7,168.57,23.9253]
[1641244216636,114.48968183,168.7,168.59,8.8961]
[1641244216838,1.67322481,168.69,168.59,8.8961]
[1641244217037,1.93322481,168.69,168.59,8.8961]
[1641244217241,1.67322481,168.69,168.59,8.8961]
[1641244217469,1.93322481,168.69,168.59,8.8961]
[1641244218065,1.93322481,168.69,168.56,8.93829097]
[1641244218066,0.26,168.69,168.56,8.93829097]
[1641244218269,9.6558,168.69,168.58,8.8966]
[1641244218467,9.6558,168.69,168.56,6.18639729]
[1641244218869,1.67322481,168.68,168.56,6.18639729]
[1641244219066,2.59327438,168.67,168.56,6.18639729]
[1641244219268,11.49047438,168.67,168.56,15.08399729]
[1641244219470,11.75047438,168.67,168.56,15.08399729]
[1641244219874,4.52649919,168.67,168.56,15.08399729]
[1641244220272,4.52649919,168.67,168.56,16.77069097]
[1641244220878,2.85327438,168.67,168.56,16.77069097]
[1641244221473,4.52649919,168.67,168.56,16.77069097]
[1641244222073,13.42369919,168.67,168.56,16.51069097]
[1641244222273,12.25047438,168.67,168.55,32.8763]
[1641244222472,12.25047438,168.67,168.55,8.8981]
[1641244223378,1.67322481,168.66,168.55,9.1581]
[1641244223581,10.83072481,168.66,168.55,8.67104]
[1641244224377,9.1575,168.66,168.55,8.67104]
[1641244224777,9.1575,168.66,168.55,8.41104]
[1641244224976,9.6575,168.66,168.55,8.41104]
[1641244225177,11.33072481,168.66,168.55,8.41104]
[1641244225376,11.33072481,168.66,168.53,35.78349368]
[1641244225578,11.33072481,168.66,168.53,42.90349368]
[1641244226080,11.30187053,168.64,168.53,43.16349368]
[1641244226477,11.56187053,168.64,168.53,43.16349368]
[1641244226779,11.56187053,168.64,168.53,41.7368]
[1641244227378,12.06187053,168.64,168.53,34.6168]
[1641244227581,12.06187053,168.64,168.53,33.3776]
[1641244227778,12.06187053,168.64,168.53,33.1176]
[1641244228177,13.73509534,168.64,168.53,33.1176]
[1641244229378,13.73509534,168.64,168.53,33.3776]
[1641244229980,12.06187053,168.64,168.53,33.3776]
[1641244231081,13.73509534,168.64,168.53,33.3776]
[1641244234992,13.73509534,168.64,168.53,24.479]
[1641244236116,13.47509534,168.64,168.53,24.479]
[1641244236313,13.47509534,168.64,168.53,33.378]
[1641244237817,13.47509534,168.64,168.53,24.479]
[1641244238015,7.12,168.63,168.52,18.56364752]
[1641244238214,7.12,168.63,168.52,12.37717945]
[1641244238418,2.23664049,168.57,168.52,12.37717945]
[1641244238815,2.99664049,168.57,168.52,12.37717945]
[1641244239319,2.23664049,168.57,168.52,12.37717945]
[1641244239520,2.49664049,168.57,168.52,12.37717945]
[1641244241518,2.99664049,168.57,168.52,12.37717945]
[1641244242620,11.89884049,168.57,168.52,12.37717945]
[1641244243319,11.39884049,168.57,168.52,12.37717945]
[1641244243919,11.89884049,168.57,168.52,12.37717945]
[1641244245523,19.01884049,168.57,168.52,12.37717945]
[1641244246724,18.25884049,168.57,168.52,12.37717945]
[1641244246924,9.35664049,168.57,168.52,12.37717945]
[1641244248128,9.61664049,168.57,168.52,12.37717945]
[1641244249528,18.51884049,168.57,168.52,12.37717945]
[1641244250825,19.01884049,168.57,168.52,12.37717945]
[1641244254728,73.0,168.56,168.42,25.49344182]
[1641244254928,8.9068,168.49,168.42,22.7754]
[1641244255329,9.6668,168.49,168.42,22.7754]
[1641244255532,9.1668,168.49,168.41,23.1478]
[1641244256128,2.9154216,168.48,168.41,25.66374298]
[1641244256329,12.3221216,168.48,168.41,25.66374298]
[1641244256531,12.5821216,168.48,168.41,25.66374298]
[1641244256730,12.5821216,168.48,168.41,23.1478]
[1641244257128,12.5821216,168.48,168.38,10.1915]
[1641244257328,12.5821216,168.48,168.38,1.2844]
[1641244257730,12.5821216,168.48,168.38,4.26666002]
[1641244257929,12.5821216,168.48,168.38,26.83046002]
[1641244258532,19.7021216,168.48,168.35,1.3354]
[1641244258733,19.7021216,168.48,168.35,26.1809]
[1641244259631,19.7021216,168.48,168.35,2.14949481]
[1641244259830,19.7021216,168.48,168.28,7.12]
[1641244260033,22.836,168.47,168.26,7.12]
[1641244260230,8.9124,168.38,168.26,7.12]
[1641244260537,9.6724,168.38,168.26,7.12]
[1641244260932,2.94963051,168.37,168.27,2.93667333]
[1641244261131,0.26,168.38,168.29,8.9119]
[1641244261331,0.26,168.37,168.29,8.9119]
[1641244261532,0.26,168.38,168.29,8.9119]
[1641244261932,49.99042036,168.42,168.3,24.05634777]
[1641244262132,3.05214093,168.41,168.3,26.27469361]
[1641244262432,3.55214093,168.41,168.3,26.27469361]
[1641244262634,8.912,168.39,168.3,26.27469361]
[1641244263033,2.64326501,168.38,168.3,26.27469361]
[1641244263432,2.90326501,168.38,168.3,26.27469361]
[1641244263735,2.90326501,168.38,168.3,2.21834584]
[1641244263933,11.81566501,168.38,168.28,8.9124]
[1641244264134,12.31566501,168.38,168.27,26.0236]
[1641244264337,12.31566501,168.38,168.27,26.2836]
[1641244264940,12.31566501,168.38,168.28,2.2527475]
[1641244265439,12.31566501,168.38,168.28,2.5127475]
[1641244266236,2.90326501,168.38,168.28,11.4251475]
[1641244266636,0.26,168.38,168.28,11.4251475]
[1641244266840,0.26,168.38,168.29,24.535]
[1641244267040,0.5,168.4,168.3,23.99184119]
[1641244267236,14.07521089,168.44,168.3,23.99184119]
[1641244267437,1.67322481,168.44,168.31,32.2403]
[1641244267638,1.67322481,168.44,168.32,2.78055281]
[1641244267639,4.45834715,168.44,168.32,2.78055281]
[1641244267938,2.78512234,168.44,168.32,2.78055281]
[1641244268137,2.78512234,168.44,168.33,23.0219]
[1641244268337,2.78512234,168.44,168.36,8.9081]
[1641244268540,3.04512234,168.44,168.37,2.43363828]
[1641244269240,3.54512234,168.44,168.32,1.3458]
[1641244269442,12.45452234,168.44,168.32,1.3458]
[1641244270065,12.45452234,168.44,168.32,24.6877]
[1641244270266,12.45452234,168.44,168.33,2.59922618]
[1641244272365,12.19452234,168.44,168.33,2.59922618]
[1641244273468,12.45452234,168.44,168.33,2.59922618]
[1641244274370,19.57452234,168.44,168.33,2.59922618]
[1641244274967,19.57452234,168.44,168.32,24.6877]
[1641244275969,21.24774715,168.44,168.32,27.68689583]
[1641244276572,19.57452234,168.44,168.32,27.68689583]
[1641244276973,21.00121602,168.44,168.32,24.6877]
[1641244277176,27.45321602,168.44,168.29,1.286]
[1641244277374,8.9141,168.35,168.25,23.7584]
[1641244277574,15.0971,168.35,168.25,23.7584]
[1641244277774,15.5971,168.35,168.25,23.7584]
[1641244277976,2.19650848,168.34,168.25,23.7584]
[1641244278376,2.95650848,168.34,168.25,23.7584]
[1641244279377,2.95650848,168.34,168.24,2.92562755]
[1641244279578,2.95650848,168.34,168.21,25.5712]
[1641244279778,2.95650848,168.34,168.21,51.5567]
[1641244280593,8.9168,168.3,168.21,54.24532883]
[1641244280778,2.32327051,168.29,168.21,54.24532883]
[1641244280978,2.58327051,168.29,168.21,54.24532883]
[1641244282477,2.58327051,168.29,168.21,54.50532883]
[1641244282679,2.32327051,168.29,168.21,54.50532883]
[1641244283078,2.32327051,168.29,168.21,54.24532883]
[1641244283482,2.82327051,168.29,168.21,54.24532883]
[1641244283881,3.08327051,168.29,168.21,54.24532883]
[1641244285183,12.00047051,168.29,168.21,51.59422883]
[1641244285383,12.00047051,168.29,168.18,77.132]
[1641244285584,12.00047051,168.29,168.15,1.2382]
[1641244285785,7.12,168.28,168.15,1.2382]
[1641244285985,7.38,168.28,168.15,1.2382]
[1641244286189,7.88,168.28,168.15,1.2382]
[1641244286486,2.8777629,168.26,168.16,28.22280504]
[1641244286986,3.1377629,168.26,168.16,28.22280504]
[1641244287488,3.1377629,168.26,168.16,37.14120504]
[1641244287690,2.8777629,168.26,168.16,37.14120504]
[1641244288086,2.8777629,168.26,168.16,37.40120504]
[1641244288287,2.8777629,168.26,168.16,37.14120504]
[1641244288489,2.8777629,168.26,168.16,2.25410634]
[1641244288689,11.7969629,168.26,168.16,2.25410634]
[1641244288987,12.5569629,168.26,168.16,2.25410634]
[1641244289386,12.5569629,168.26,168.15,1.2382]
[1641244289792,19.6769629,168.26,168.15,1.2382]
[1641244290391,19.6769629,168.26,168.16,2.5533155]
[1641244290590,19.6769629,168.26,168.15,1.2382]
[1641244290791,19.6769629,168.26,168.14,24.5753]
[1641244291395,19.4169629,168.26,168.14,24.5753]
[1641244291892,19.4169629,168.26,168.15,2.53140908]
[1641244292895,19.6769629,168.26,168.15,2.53140908]
[1641244293091,19.6769629,168.26,168.15,3.78870908]
[1641244294998,19.6769629,168.26,168.15,1.2573]
[1641244295697,19.6769629,168.26,168.12,26.1842]
[1641244295899,44.2596629,168.26,168.13,2.84058934]
[1641244296116,45.67288771,168.26,168.13,3.10058934]
[1641244296316,45.67288771,168.26,168.14,1.3601]
[1641244296516,21.09018771,168.26,168.14,25.5329]
[1641244296917,19.4169629,168.26,168.14,25.5329]
[1641244297718,19.4169629,168.26,168.14,34.4525]
[1641244298118,31.83037235,168.26,168.14,34.4525]
[1641244298517,31.83037235,168.26,168.15,24.80946862]
[1641244299119,32.09037235,168.26,168.15,24.80946862]
[1641244299417,32.09037235,168.26,168.14,34.1925]
[1641244299619,32.09037235,168.26,168.14,34.4525]
[1641244300321,31.83037235,168.26,168.15,32.51139565]
[1641244300518,22.91117235,168.26,168.16,2.98724492]
[1641244300718,22.91117235,168.26,168.16,27.01544492]
[1641244300921,22.91117235,168.26,168.16,27.27544492]
[1641244301126,3.3777629,168.26,168.16,27.27544492]
[1641244301320,2.8777629,168.26,168.16,27.27544492]
[1641244301519,94.8003,168.29,168.16,27.27544492]
[1641244301724,95.3003,168.29,168.16,27.27544492]
[1641244301922,7.62,168.29,168.16,36.19404492]
[1641244302220,7.62,168.29,168.16,37.6207386]
[1641244302420,7.62,168.29,168.17,1.3215]
[1641244302623,2.70181241,168.28,168.17,1.3215]
[1641244302819,2.70181241,168.28,168.17,1.5815]
[1641244303020,2.96181241,168.28,168.17,1.5815]
[1641244303219,2.70181241,168.28,168.17,1.5815]
[1641244303419,2.70181241,168.28,168.2,8.916]
[1641244303720,2.70181241,168.28,168.21,2.35026759]
[1641244304120,2.70181241,168.28,168.21,2.61026759]
[1641244304521,2.96181241,168.28,168.21,2.61026759]
[1641244305020,2.70181241,168.28,168.21,2.61026759]
[1641244305223,2.70181241,168.28,168.21,2.35026759]
[1641244305421,3.20181241,168.28,168.21,2.61026759]
[1641244305626,3.20181241,168.28,168.21,11.52606759]
[1641244306422,3.46181241,168.28,168.21,11.52606759]
[1641244306830,3.46181241,168.28,168.21,11.26606759]
[1641244307027,3.46181241,168.28,168.21,2.35026759]
[1641244307224,3.46181241,168.28,168.18,23.82]
[1641244308123,3.46181241,168.28,168.19,2.62713929]
[1641244308724,12.37971241,168.28,168.19,2.62713929]
[1641244311627,3.46181241,168.28,168.19,2.62713929]
[1641244312029,3.20181241,168.28,168.19,2.62713929]
[1641244312226,3.20181241,168.28,168.19,2.88713929]
[1641244312428,3.20181241,168.28,168.19,11.80433929]
[1641244312830,7.12,168.31,168.19,11.80433929]
[1641244313628,7.12,168.31,168.19,13.10273929]
[1641244313830,2.58712785,168.3,168.19,13.10273929]
[1641244314130,2.84712785,168.3,168.19,13.10273929]
[1641244314330,3.34712785,168.3,168.19,13.10273929]
[1641244314631,2.84712785,168.3,168.19,13.10273929]
[1641244316634,2.84712785,168.3,168.19,12.84273929]
[1641244317036,2.58712785,168.3,168.19,12.84273929]
[1641244318041,2.58712785,168.3,168.19,13.10273929]
[1641244319037,2.58712785,168.3,168.24,8.9144]
[1641244319239,2.58712785,168.3,168.25,23.13664623]
[1641244319638,2.58712785,168.3,168.25,23.39664623]
[1641244320841,2.58712785,168.3,168.25,0.26]
[1641244321042,2.58712785,168.3,168.24,11.73868731]
[1641244321944,2.58712785,168.3,168.25,30.41182818]
[1641244322366,2.58712785,168.3,168.25,30.67182818]
[1641244323446,7.12,168.34,168.25,30.67182818]
[1641244323643,7.88,168.34,168.25,30.67182818]
[1641244323844,7.88,168.34,168.25,39.58582818]
[1641244324043,35.59162481,168.36,168.25,39.58582818]
[1641244324044,26.81412481,168.36,168.25,39.58582818]
[1641244324243,2.96402481,168.36,168.25,39.58582818]
[1641244324645,2.76080591,168.35,168.25,39.58582818]